bitfinex/quotes_ETHUSD_20250821
["timestamp","ask_amount","ask_price","bid_price","bid_amount"]
[1755792705114,0.303,4261.3,4261.2,4.349]
[1755792705424,0.7328,4261.3,4261.2,4.349]
[1755792705828,0.7328,4261.3,4261.1,1.805]
[1755792706117,0.56124262,4261.2,4261.1,1.805]
[1755792706420,0.8504,4261.2,4261.1,6.153]
[1755792706981,0.8504,4261.2,4261.0,4.348]
[1755792707187,0.44364262,4261.1,4261.0,4.348]
[1755792707405,0.8504,4261.1,4261.0,4.348]
[1755792707923,0.8504,4261.1,4261.0,4.332331]
[1755792711725,0.8504,4261.1,4260.4,1.804]
[1755792711910,0.44364262,4261.0,4260.5,4.345]
[1755792712226,0.303,4260.6,4260.5,4.345]
[1755792712395,0.1176,4260.6,4260.5,4.345]
[1755792712790,0.303,4260.6,4260.5,4.345]
[1755792713406,0.1176,4260.7,4260.5,4.345]
[1755792713732,0.1176,4260.7,4260.6,0.2997]
[1755792714027,0.4206,4260.7,4260.5,4.345]
[1755792714326,0.4298,4260.6,4260.5,4.345]
[1755792714522,0.7328,4260.6,4260.4,1.804]
[1755792714739,0.4298,4260.5,4260.3,0.001]
[1755792714948,0.303,4260.4,4260.3,0.001]
[1755792715107,0.43444262,4260.4,4260.3,0.001]
[1755792715303,0.86424262,4260.4,4260.3,0.001]
[1755792717139,0.8504,4260.4,4260.3,0.001]
[1755792721113,0.4206,4260.4,4260.3,0.001]
[1755792721706,0.8504,4260.4,4260.3,0.001]
[1755792724906,3.86424262,4260.4,4260.3,0.001]
[1755792725207,4.43116688,4260.4,4260.3,0.001]
[1755792726738,5.26747079,4260.4,4260.3,0.001]
[1755792726905,5.25362817,4260.4,4260.3,0.001]
[1755792728509,35.25362817,4260.4,4260.3,0.001]
[1755792729411,9.58962817,4260.4,4260.3,0.001]
[1755792729812,5.25362817,4260.4,4260.3,0.001]
[1755792730011,9.58962817,4260.4,4260.3,0.001]
[1755792730524,5.25362817,4260.4,4260.3,0.001]
[1755792730727,9.58862817,4260.4,4260.3,0.001]
[1755792730926,26.4756019,4260.4,4260.3,0.001]
[1755792732951,56.4756019,4260.4,4260.3,0.001]
[1755792734040,26.4736019,4260.4,4260.3,0.001]
[1755792735160,26.9767054,4260.4,4260.3,0.001]
[1755792736354,5.58042776,4260.4,4260.3,0.001]
[1755792736524,26.9757054,4260.4,4260.3,0.001]
[1755792737670,26.4726019,4260.4,4260.3,0.001]
[1755792737827,26.97589396,4260.4,4260.3,0.001]
[1755792738247,56.97589396,4260.4,4260.3,0.001]
[1755792738529,56.97589396,4260.4,4259.8,0.021]
[1755792738530,3.0,4260.2,4259.8,0.021]
[1755792738729,21.01137764,4259.9,4259.8,0.021]
[1755792738952,51.12897764,4259.9,4259.8,0.021]
[1755792739268,51.58257764,4259.9,4259.8,0.021]
[1755792739474,52.08607983,4259.9,4259.8,0.021]
[1755792739766,54.44821946,4259.9,4259.8,0.021]
[1755792740558,5.47973963,4259.9,4259.8,0.3112]
[1755792740773,4.4466,4259.9,4259.8,0.3112]
[1755792741001,4.4466,4259.9,4259.8,0.7598]
[1755792741150,0.1176,4259.9,4259.8,0.3112]
[1755792741354,4.328,4260.7,4259.8,0.7598]
[1755792741694,0.1176,4259.9,4259.8,0.3112]
[1755792742081,0.1176,4259.9,4259.8,0.7598]
[1755792746858,0.01384262,4260.6,4259.8,0.7598]
[1755792747164,0.01384262,4260.9,4259.9,0.4486]
[1755792749155,4.7766,4260.8,4259.8,0.021]
[1755792749359,3.49308688,4260.7,4259.8,0.021]
[1755792749790,0.4536,4260.6,4259.8,0.021]
[1755792749956,0.2881,4259.9,4259.8,0.021]
[1755792750156,7.62294262,4259.9,4259.8,0.021]
[1755792750394,8.0627,4259.9,4259.8,0.021]
[1755792750606,8.86897,4259.9,4259.8,0.021]
[1755792750768,9.37398855,4259.9,4259.8,0.021]
[1755792751500,9.59317856,4259.9,4259.8,0.021]
[1755792751699,8.92038855,4259.9,4259.8,0.021]
[1755792752430,8.86897,4259.9,4259.8,0.01811236]
[1755792752604,9.37391406,4259.9,4259.8,0.01811236]
[1755792753928,27.31627003,4259.9,4259.8,0.01811236]
[1755792754215,27.0971917,4259.9,4259.8,0.01811236]
[1755792754530,27.31624048,4259.9,4259.8,0.01811236]
[1755792755026,5.47836284,4259.9,4259.8,0.01811236]
[1755792755183,4.53026284,4259.9,4259.8,0.01811236]
[1755792755383,7.33184262,4259.9,4259.8,0.30831236]
[1755792755585,7.318,4259.9,4259.8,0.30831236]
[1755792755917,7.6061,4259.9,4259.8,0.01811236]
[1755792756995,7.8822,4259.9,4259.8,0.01811236]
[1755792757305,8.50450455,4259.9,4259.8,0.01811236]
[1755792757503,10.86664418,4259.9,4259.8,0.01811236]
[1755792758020,11.08573365,4259.9,4259.8,0.01811236]
[1755792758380,11.74573365,4259.9,4259.8,0.01811236]
[1755792759224,41.74573365,4259.9,4259.8,0.01811236]
[1755792759900,11.74573365,4259.9,4259.8,0.01811236]
[1755792761125,11.46963365,4259.9,4259.8,0.01811236]
[1755792762102,7.15163365,4259.9,4259.8,0.01811236]
[1755792762467,11.93053365,4259.9,4259.8,0.01811236]
[1755792762931,41.71144418,4259.9,4259.8,0.01811236]
[1755792763108,41.93058278,4259.9,4259.8,0.01811236]
[1755792763633,41.93058546,4259.9,4259.8,0.01811236]
[1755792764006,7.15168546,4259.9,4259.8,0.01811236]
[1755792764363,11.92958546,4259.9,4259.8,0.01811236]
[1755792764523,9.56744583,4259.9,4259.8,0.01811236]
[1755792764923,0.1176,4259.9,4259.8,0.74381236]
[1755792765131,4.4286,4259.9,4259.8,0.74481236]
[1755792765336,7.44444262,4259.9,4259.8,0.74481236]
[1755792765526,0.1196,4259.9,4259.8,0.74481236]
[1755792765914,0.13344262,4259.9,4259.8,0.74481236]
[1755792767571,0.1196,4259.9,4259.8,0.74481236]
[1755792768232,0.1196,4259.9,4259.8,3.42505399]
[1755792768555,0.1196,4259.9,4259.8,1.07752594]
[1755792768717,0.1196,4259.9,4259.8,0.76828764]
[1755792769250,0.1196,4259.9,4259.8,3.11581569]
[1755792769454,0.1196,4259.9,4259.8,0.76828764]
[1755792770120,0.1196,4259.9,4259.8,0.74481236]
[1755792770312,0.1196,4259.9,4259.8,0.76828764]
[1755792770512,0.1196,4259.9,4259.8,1.07987946]
[1755792771017,0.1196,4259.9,4259.8,3.42740751]
[1755792772065,0.1196,4259.9,4259.8,1.07987946]
[1755792772218,0.1196,4259.9,4259.8,3.42740751]
[1755792773356,0.002,4260.4,4259.8,3.42740751]
[1755792773357,0.002,4260.4,4260.3,3.00725254]
[1755792773663,0.002,4260.4,4260.3,22.1918027]
[1755792773864,0.002,4260.4,4260.3,22.16833018]
[1755792774032,0.002,4260.4,4260.3,22.60223018]
[1755792775653,0.1196,4260.8,4260.7,3.00703217]
[1755792775961,0.002,4260.8,4260.7,10.90153539]
[1755792776370,0.002,4260.8,4260.7,11.33543539]
[1755792779137,0.002,4261.5,4261.0,3.00686693]
[1755792779338,0.002,4261.5,4261.4,23.36172428]
[1755792779647,0.002,4261.5,4261.4,24.25217206]
[1755792779847,0.002,4261.5,4261.4,24.68607206]
[1755792780272,0.002,4261.5,4261.4,7.62279442]
[1755792780451,0.002,4261.5,4261.4,11.91979442]
[1755792781166,0.002,4261.5,4261.4,12.09783685]
[1755792783177,0.002,4261.5,4261.4,7.80083685]
[1755792783560,0.002,4261.5,4261.4,12.09383685]
[1755792783738,0.002,4261.5,4261.4,7.80083685]
[1755792783940,0.002,4261.5,4261.4,12.09383685]
[1755792785040,0.002,4261.5,4261.4,7.80083685]
[1755792785236,0.002,4261.5,4261.4,7.92043685]
[1755792785537,0.002,4261.5,4261.4,12.21243685]
[1755792785977,0.002,4261.5,4261.4,12.21143685]
[1755792786671,0.002,4261.5,4261.4,2.57379021]
[1755792786837,0.002,4261.5,4261.4,4.02798907]
[1755792787038,0.002,4261.5,4261.4,8.34145553]
[1755792787265,0.002,4261.5,4261.4,8.31798907]
[1755792787445,0.002,4261.5,4261.4,5.97134243]
[1755792787834,0.002,4261.5,4261.4,8.31798907]
[1755792788862,0.002,4261.5,4261.4,11.31798907]
[1755792789272,0.002,4261.5,4261.4,10.88208907]
[1755792789686,0.002,4261.5,4261.4,6.59408907]
[1755792789899,0.002,4261.5,4261.4,11.35358907]
[1755792791859,0.002,4261.5,4261.4,5.53344243]
[1755792792097,0.002,4261.5,4261.4,1.98128667]
[1755792792261,0.2947,4261.5,4261.4,4.286]
[1755792792677,0.002,4261.5,4261.4,4.286]
[1755792793470,0.2947,4261.5,4261.4,4.285]
[1755792793896,0.002,4261.5,4261.4,8.66339334]
[1755792794275,0.002,4261.5,4261.4,8.84069561]
[1755792794669,0.002,4261.5,4261.4,8.36919561]
[1755792795601,0.2947,4261.5,4261.4,0.6113467]
[1755792795775,0.8414,4261.5,4261.4,4.284]
[1755792796782,0.8414,4261.5,4261.1,1.805]
[1755792796984,0.8414,4261.5,4261.2,4.282]
[1755792797191,0.4291,4261.4,4261.2,4.282]
[1755792797392,0.2927,4261.3,4261.2,4.282]
[1755792797590,0.1196,4261.5,4261.2,6.94112434]
[1755792797897,0.1196,4261.5,4261.2,6.91764996]
[1755792798480,0.1196,4261.5,4261.2,4.5709]
[1755792798680,0.1196,4261.5,4261.3,0.02346701]
[1755792798868,0.1196,4261.5,4261.4,4.281]
[1755792799067,0.1196,4261.5,4261.4,4.5699]
[1755792799279,0.4123,4261.5,4261.4,4.281]
[1755792799480,0.8414,4261.5,4261.4,4.281]
[1755792800090,0.4123,4261.5,4261.4,4.281]
[1755792800403,0.8414,4261.5,4261.4,4.281]
[1755792800994,0.1196,4261.5,4261.4,4.281]
[1755792801371,0.1196,4261.5,4261.4,4.30446646]
[1755792802069,0.1196,4261.5,4261.4,4.59336646]
[1755792802899,0.002,4261.5,4261.4,4.941]
[1755792803503,0.002,4261.5,4261.4,7.57654664]
[1755792803733,0.002,4261.5,4261.4,4.5699]
[1755792803877,0.002,4261.5,4261.4,6.62764664]
[1755792804075,0.002,4261.5,4261.4,6.91654664]
[1755792804515,0.002,4261.5,4261.4,4.281]
[1755792804721,0.002,4261.5,4261.4,7.59336646]
[1755792805018,0.002,4261.5,4261.4,9.91654664]
[1755792805173,0.002,4261.5,4261.4,7.5699]
[1755792805369,0.002,4261.5,4261.4,7.281]
[1755792805574,0.2947,4261.5,4261.4,7.281]
[1755792806173,0.4123,4261.5,4261.4,7.281]
[1755792806594,0.1196,4261.5,4261.4,7.5699]
[1755792806988,0.4123,4261.5,4261.4,7.281]
[1755792807570,0.1196,4261.5,4261.4,9.91654664]
[1755792807770,0.1196,4261.5,4261.4,7.5699]
[1755792808115,0.4123,4261.5,4261.4,3.0]
[1755792808294,0.8414,4261.5,4261.0,0.001]
[1755792808492,0.8414,4261.5,4261.1,4.273]
[1755792808493,0.1176,4261.2,4261.1,4.273]
[1755792808693,0.8394,4261.2,4261.1,4.273]
[1755792809808,0.8394,4261.2,4261.0,0.001]
[1755792810117,0.2927,4261.2,4261.1,4.272]
[1755792810609,0.8394,4261.2,4261.1,4.272]
[1755792811681,0.4103,4261.2,4261.1,4.272]
[1755792813431,0.8394,4261.2,4261.1,4.272]
[1755792815043,0.4103,4261.2,4261.1,4.272]
[1755792820623,0.8639,4261.2,4261.1,4.272]
[1755792821319,0.8639,4261.2,4261.1,4.265]
[1755792822210,0.1176,4261.2,4261.1,4.5783]
[1755792822620,0.1176,4261.2,4261.1,5.26235692]
[1755792823425,0.1176,4261.2,4261.1,4.94905692]
[1755792823629,0.4147,4261.2,4261.0,0.001]
[1755792823788,0.46744262,4261.1,4261.0,0.001]
[1755792823986,0.2971,4261.1,4261.0,0.001]
[1755792824212,0.1176,4261.2,4261.0,0.001]
[1755792824213,0.1176,4261.2,4261.0,4.5763]
[1755792824533,0.4147,4261.1,4261.0,4.263]
[1755792824691,0.8683,4261.1,4261.0,4.263]
[1755792825114,0.4147,4261.1,4261.0,4.263]
[1755792825427,0.1176,4261.1,4261.0,5.0026]
[1755792825732,0.1176,4261.1,4261.0,0.7406]
[1755792825892,0.1176,4261.1,4261.0,4.5753]
[1755792826309,0.3891,4261.1,4261.0,4.262]
[1755792827432,0.3891,4261.1,4261.0,4.261]
[1755792828228,0.8409,4261.1,4261.0,4.261]
[1755792828399,0.3891,4261.1,4261.0,4.261]
[1755792828736,0.8409,4261.1,4261.0,4.261]
[1755792829320,0.8409,4261.1,4261.0,0.001]
[1755792832141,0.1196,4261.1,4261.0,0.001]
[1755792832336,0.1196,4261.1,4261.0,0.3143]
[1755792832636,0.4167,4261.1,4261.0,0.001]
[1755792832800,0.8703,4261.1,4261.0,0.001]
[1755792834143,0.4167,4261.1,4261.0,0.001]
[1755792834310,0.8703,4261.1,4261.0,0.001]
[1755792834657,0.1196,4261.1,4261.0,0.3143]
[1755792834806,0.002,4261.1,4261.0,0.3143]
[1755792835011,0.2991,4261.1,4261.0,0.001]
[1755792835507,0.002,4261.1,4261.0,0.3143]
[1755792835740,0.002,4261.1,4261.0,0.77357698]
[1755792836152,0.5934,4261.1,4261.0,0.001]
[1755792836643,0.2991,4261.1,4261.0,0.001]
[1755792837512,0.5934,4261.1,4261.0,0.001]
[1755792838207,0.002,4261.1,4261.0,0.001]
[1755792838412,0.002,4261.1,4261.0,0.3143]
[1755792838646,0.002,4261.1,4261.0,0.001]
[1755792838947,0.1413,4261.1,4261.0,0.001]
[1755792840750,0.002,4261.1,4261.0,0.3143]
[1755792840914,0.002,4261.1,4261.0,0.7471]
[1755792841549,0.002,4261.1,4261.0,0.3143]
[1755792842932,0.7527,4261.1,4261.0,0.001]
[1755792843322,0.2991,4261.1,4261.0,0.001]
[1755792844961,0.4167,4261.1,4261.0,0.001]
[1755792845456,0.1196,4261.1,4261.0,0.3143]
[1755792845768,0.1196,4261.1,4261.0,0.7471]
[1755792846065,0.1196,4261.1,4261.0,0.001]
[1755792846229,0.1196,4261.1,4261.0,0.3143]
[1755792847729,0.1196,4261.1,4261.0,0.7806]
[1755792848129,0.1196,4261.1,4261.0,0.3143]
[1755792849868,0.1196,4261.1,4261.0,0.7806]
[1755792850111,0.1196,4261.1,4261.0,1.28570698]
[1755792851165,0.1196,4261.1,4261.0,0.81940698]
[1755792853569,0.1196,4261.1,4261.0,1.28570698]
[1755792855281,0.002,4261.1,4261.0,1.28570698]
[1755792856172,0.002,4261.1,4261.0,0.81940698]
[1755792856382,0.002,4261.1,4261.0,0.3143]
[1755792856588,0.002,4261.1,4261.0,4.5513]
[1755792857351,0.002,4261.1,4261.0,4.238]
[1755792857605,0.2887,4261.1,4261.0,4.238]
[1755792858588,0.002,4261.1,4261.0,4.5411]
[1755792858885,0.2887,4261.1,4261.0,4.238]
[1755792860187,0.2887,4261.1,4261.0,4.235]
[1755792861895,0.7461,4261.1,4261.0,4.235]
[1755792862798,0.2887,4261.1,4261.0,4.235]
[1755792863775,0.7461,4261.1,4261.0,4.235]
[1755792864006,0.7461,4261.1,4261.0,0.001]
[1755792864183,1.63302595,4261.1,4261.0,0.001]
[1755792864510,0.75994262,4261.1,4261.0,0.001]
[1755792864714,0.4063,4261.1,4261.0,0.001]
[1755792865001,0.8637,4261.1,4261.0,0.001]
[1755792865708,0.1196,4261.1,4261.0,0.3041]
[1755792866413,0.1196,4261.1,4261.0,5.0004]
[1755792866614,0.1196,4261.1,4261.0,5.50044]
[1755792868074,0.002,4261.1,4261.0,11.50730693]
[1755792870688,0.002,4261.1,4261.0,11.62690693]
[1755792871532,0.002,4261.1,4261.0,11.96116878]
[1755792873416,0.002,4261.1,4261.0,11.74450693]
[1755792876418,0.002,4261.1,4261.0,7.51450693]
[1755792876631,0.002,4261.1,4261.0,11.73650693]
[1755792876826,0.002,4261.1,4261.0,11.73550693]
[1755792881917,0.002,4261.1,4261.0,19.59144026]
[1755792882983,0.002,4261.1,4261.0,15.37444026]
[1755792883183,0.002,4261.1,4261.0,19.59044026]
[1755792883428,0.2928,4261.1,4261.0,0.73824]
[1755792883632,0.7325,4261.1,4261.0,0.1206]
[1755792883788,0.7325,4261.1,4261.0,6.68246693]
[1755792883988,0.7325,4261.1,4261.0,7.3356]
[1755792884388,0.7325,4261.1,4261.0,7.9956]
[1755792884815,0.7325,4261.1,4261.0,6.12746693]
[1755792885019,0.7325,4261.1,4261.0,7.3346]
[1755792885729,0.7325,4261.1,4261.0,7.215]
[1755792886024,0.7325,4261.1,4261.0,9.56186693]
[1755792886326,0.7325,4261.1,4261.0,0.001]
[1755792886531,0.7325,4261.1,4261.0,4.215]
[1755792886739,0.7325,4261.1,4261.0,7.215]
[1755792887036,0.7325,4261.1,4261.0,3.001]
[1755792887207,0.7325,4261.1,4261.0,0.001]
[1755792887535,0.7325,4261.1,4261.0,4.213]
[1755792888444,0.7325,4261.1,4261.0,0.001]
[1755792888647,1.61945021,4261.1,4261.0,0.001]
[1755792892448,0.7325,4261.1,4261.0,0.001]
[1755792896647,25.03560968,4261.1,4260.5,0.001]
[1755792896846,7.86713333,4260.6,4260.5,0.001]
[1755792897060,8.15793333,4260.6,4260.5,0.001]
[1755792897213,8.97372666,4260.6,4260.5,0.001]
[1755792897547,9.41342666,4260.6,4260.5,0.001]
[1755792899350,2.20629333,4260.6,4260.5,0.001]
[1755792899650,1.56013595,4260.6,4260.5,0.001]
[1755792899829,1.54629333,4260.6,4260.5,0.001]
[1755792900001,0.7305,4260.6,4260.5,0.001]
[1755792900402,0.2908,4260.6,4260.5,0.001]
[1755792900612,1.807,4261.1,4260.5,0.001]
[1755792900613,0.002,4261.1,4260.5,0.3141]
[1755792901027,0.002,4261.1,4260.5,0.001]
[1755792901028,0.2908,4260.6,4260.5,0.001]
[1755792901227,0.7305,4260.6,4260.5,0.001]
[1755792901452,1.60410595,4260.6,4260.5,0.001]
[1755792903758,2.26410595,4260.6,4260.5,0.001]
[1755792904934,2.26410595,4260.6,4260.1,0.001]
[1755792904935,8.52713333,4260.2,4260.1,0.001]
[1755792905120,0.66,4260.1,4259.8,0.01911236]
[1755792905327,0.9508,4259.9,4259.8,0.01911236]
[1755792905620,0.66,4259.8,4259.3,0.001]
[1755792905825,8.81793333,4259.5,4259.3,0.001]
[1755792906141,13.01993333,4259.5,4259.3,0.001]
[1755792906320,12.80965364,4259.5,4259.3,0.001]
[1755792906519,12.92725364,4259.5,4259.3,0.001]
[1755792906720,14.2293963,4259.5,4259.3,0.001]
[1755792906950,6.35124266,4259.5,4259.3,0.001]
[1755792907150,0.4084,4259.5,4259.3,0.001]
[1755792907471,0.1176,4259.5,4259.3,0.001]
[1755792907820,0.1176,4259.5,4259.4,0.2861]
[1755792908023,0.1176,4259.5,4259.4,0.7177]
[1755792908833,0.1176,4259.7,4259.4,1.3777]
[1755792909149,0.1176,4259.7,4259.6,23.10946652]
[1755792909330,0.1176,4259.7,4259.6,25.20056652]
[1755792909524,0.1176,4259.7,4259.6,25.63216652]
[1755792909851,0.1176,4260.7,4260.3,2.3471985]
[1755792910180,0.1176,4260.7,4260.6,0.2851]
[1755792910356,0.02,4260.8,4260.7,6.00703217]
[1755792910525,0.02,4260.8,4260.7,6.29213217]
[1755792910726,0.02,4260.8,4260.7,6.72373217]
[1755792911154,0.02,4260.8,4260.7,6.84133217]
[1755792912223,0.02,4260.8,4260.7,11.03933217]
[1755792912447,0.02,4260.8,4260.7,11.48561338]
[1755792912641,0.02,4260.8,4260.7,9.13858121]
[1755792913234,0.02,4260.8,4260.7,11.36801338]
[1755792914056,0.02,4260.8,4260.7,8.35998121]
[1755792914238,0.1376,4260.8,4260.7,0.2851]
[1755792914434,0.1376,4260.8,4260.7,3.7167]
[1755792914840,0.1376,4260.8,4260.7,3.74017032]
[1755792915148,0.1376,4260.8,4260.7,6.74720249]
[1755792915331,0.1376,4260.8,4260.7,6.72373217]
[1755792915735,0.02,4260.8,4260.7,6.72373217]
[1755792916043,0.02,4260.8,4260.7,6.84133217]
[1755792916765,0.002,4261.0,4260.9,3.00692201]
[1755792916957,0.002,4261.0,4260.9,23.41731948]
[1755792917156,0.002,4261.0,4260.9,23.82545026]
[1755792918466,0.002,4261.0,4260.9,28.11250726]
[1755792919870,0.002,4261.0,4260.9,23.91950726]
[1755792920062,0.002,4261.0,4260.9,28.11150726]
[1755792920470,0.002,4261.0,4260.9,8.001757]
[1755792920645,0.002,4261.0,4260.9,10.34867901]
[1755792920841,0.002,4261.0,4260.9,11.00867901]
[1755792921376,0.002,4261.0,4260.9,28.11050726]
[1755792924648,0.002,4261.5,4261.0,6.00686693]
[1755792924851,0.002,4261.5,4261.4,6.40934664]
[1755792925057,0.002,4261.5,4261.4,12.40234664]
[1755792925268,0.002,4261.5,4261.4,12.83394664]
[1755792925593,0.02,4261.8,4261.5,6.00659157]
[1755792925743,0.02,4261.8,4261.5,23.82511982]
[1755792926244,0.02,4261.8,4261.7,2.34648145]
[1755792926443,0.4746,4264.2,4262.7,6.00593098]
[1755792926664,0.1176,4263.4,4262.7,29.38485923]
[1755792926974,0.1176,4263.7,4262.7,29.93405923]
[1755792927340,0.1176,4263.7,4262.7,30.11132505]
[1755792927550,0.1176,4263.7,4262.7,25.92432505]
[1755792927768,0.1176,4263.7,4262.7,30.11032505]
[1755792927973,0.1176,4264.2,4262.7,30.11032505]
[1755792928741,0.4746,4264.0,4262.7,30.11032505]
[1755792928941,0.4746,4264.0,4262.7,25.92432505]
[1755792929377,0.01384262,4265.3,4262.7,25.92432505]
[1755792929378,0.4746,4263.7,4262.7,29.67672505]
[1755792929675,0.1376,4263.8,4262.7,30.10832505]
[1755792929979,0.02,4263.8,4262.7,13.0064968]
[1755792930350,0.02,4263.8,4263.7,3.00538077]
[1755792930569,0.02,4263.8,4263.7,29.40376282]
[1755792930784,0.02,4263.8,4263.7,29.92950902]
[1755792931276,0.02,4263.8,4263.7,29.49790902]
[1755792931572,0.02,4263.8,4263.7,29.92950902]
[1755792932153,0.02,4263.8,4263.7,12.82768077]
[1755792933374,0.5922,4264.9,4264.7,3.00483082]
[1755792933375,0.1176,4264.9,4264.7,3.00483082]
[1755792933575,0.1176,4264.9,4264.7,29.93618099]
[1755792933879,0.7833,4264.8,4264.7,5.464]
[1755792934083,0.7833,4264.8,4264.7,11.98983082]
[1755792934286,0.02,4264.8,4264.7,12.82413082]
[1755792934497,0.02,4264.8,4264.7,9.7626]
[1755792934700,0.3087,4264.8,4264.7,9.7626]
[1755792934847,0.7833,4264.8,4264.7,9.645]
[1755792935224,0.02,4264.8,4264.7,12.39253082]
[1755792935482,0.02,4264.8,4264.7,12.10743082]
[1755792935998,0.3087,4264.8,4264.7,5.5816]
[1755792936147,0.02,4264.8,4264.7,12.10543082]
[1755792936879,0.02,4264.8,4264.7,12.39053082]
[1755792937058,0.02,4264.8,4264.7,12.10543082]
[1755792937259,0.3087,4264.8,4264.7,5.5816]
[1755792937571,0.3087,4264.8,4264.7,12.10543082]
[1755792937775,0.3087,4264.8,4264.7,9.7606]
[1755792937949,0.3087,4264.8,4264.7,12.10543082]
[1755792938149,0.3087,4264.8,4264.7,9.7606]
[1755792938150,0.02,4264.8,4264.7,9.7606]
[1755792938465,0.7914,4264.8,4264.7,5.5816]
[1755792938676,0.7914,4264.8,4264.7,9.641]
[1755792939081,0.7914,4264.8,4264.7,4.804]
[1755792939261,0.7914,4264.8,4264.7,5.981]
[1755792940094,0.909,4264.8,4264.7,5.981]
[1755792941652,0.4432,4264.8,4264.7,5.981]
[1755792941986,0.909,4264.8,4264.7,5.981]
[1755792943053,0.4432,4264.8,4264.7,5.981]
[1755792944686,0.02,4264.8,4264.7,6.9281]
[1755792944887,0.02,4264.8,4264.7,9.27293082]
[1755792945084,0.02,4264.8,4264.7,12.72053082]
[1755792945293,0.02,4264.8,4264.7,12.83813082]
[1755792945604,0.3256,4264.8,4264.7,9.0946]
[1755792945972,0.3256,4264.8,4264.7,8.977]
[1755792946176,0.7914,4264.8,4264.7,4.804]
[1755792946398,0.7914,4264.8,4264.0,1.803]
[1755792946601,0.47964262,4264.7,4264.1,4.173]
[1755792946895,0.3056,4264.2,4264.1,4.173]
[1755792947072,0.889,4264.2,4264.1,4.173]
[1755792947277,0.889,4264.2,4263.7,1.803]
[1755792947601,0.889,4264.2,4263.8,4.172]
[1755792947602,0.4658,4264.1,4263.8,4.172]
[1755792947805,0.3056,4263.9,4263.7,1.803]
[1755792948101,0.5834,4263.8,4263.7,1.803]
[1755792948261,0.889,4263.8,4263.7,5.975]
[1755792948603,0.889,4263.8,4263.7,4.171]
[1755792948811,0.889,4263.8,4262.8,0.021]
[1755792948966,0.4658,4263.7,4262.9,4.171]
[1755792949173,0.3056,4263.0,4262.9,4.171]
[1755792949373,0.4232,4263.0,4262.9,4.171]
[1755792949697,0.4232,4263.0,4262.9,4.4815582]
[1755792949698,0.1176,4263.0,4262.9,4.4815582]
[1755792949862,0.1176,4263.3,4262.9,5.39659582]
[1755792950065,0.1176,4263.3,4262.9,0.46743762]
[1755792950275,0.4232,4263.0,4262.8,0.021]
[1755792950477,0.4232,4263.0,4262.9,4.171]
[1755792951313,0.1176,4263.1,4262.9,4.4815582]
[1755792951531,0.1176,4263.1,4262.9,4.9291582]
[1755792951707,0.1176,4263.1,4262.9,4.4581]
[1755792951878,0.1176,4263.1,4263.0,3.45336589]
[1755792952072,0.03584262,4264.8,4263.0,0.9471]
[1755792952286,0.1176,4263.6,4263.0,1.0647]
[1755792952691,0.1176,4263.6,4263.0,3.41042199]
[1755792952887,0.1176,4263.6,4263.0,1.0647]
[1755792953210,0.1176,4263.6,4263.2,0.66]
[1755792953406,0.1176,4263.6,4263.3,5.974]
[1755792953707,0.1176,4263.6,4263.5,0.2871]
[1755792954025,0.1176,4263.8,4263.5,0.3105549]
[1755792954169,0.1176,4263.8,4263.6,4.169]
[1755792955430,0.1176,4263.8,4263.7,0.0234538]
[1755792955827,0.1176,4263.8,4263.6,4.169]
[1755792957250,0.3056,4263.7,4263.6,4.169]
[1755792957419,0.1176,4263.8,4263.6,4.169]
[1755792957817,0.7714,4263.7,4263.3,1.804]
[1755792958012,0.4658,4263.6,4263.4,4.167]
[1755792958313,0.1176,4263.4,4263.3,1.804]
[1755792958656,0.889,4263.4,4263.3,1.804]
[1755792958812,0.889,4263.4,4263.3,5.971]
[1755792959918,0.889,4263.4,4263.0,0.001]
[1755792960214,0.1176,4263.1,4263.0,0.001]
[1755792960447,0.43704262,4263.1,4263.0,0.001]
[1755792960613,0.90284262,4263.1,4263.0,0.001]
[1755792960810,0.90284262,4263.1,4263.0,0.02445765]
[1755792960811,0.1176,4263.1,4263.0,0.02445765]
[1755792961124,0.4232,4263.1,4263.0,0.001]
[1755792961918,0.1176,4263.1,4263.0,0.001]
[1755792962623,0.4232,4263.1,4263.0,0.001]
[1755792963226,0.1176,4263.1,4263.0,0.001]
[1755792963453,0.1176,4263.1,4263.0,1.17795765]
[1755792963625,0.1176,4263.1,4263.0,1.1545]
[1755792963826,0.1176,4263.1,4263.0,0.4198]
[1755792964041,0.1176,4263.1,4263.0,4.4531]
[1755792964228,0.01384262,4264.4,4263.0,4.4531]
[1755792964430,0.1176,4263.4,4263.0,4.4531]
[1755792964745,0.1176,4263.4,4263.1,0.4476]
[1755792964945,0.1176,4263.4,4263.0,4.166]
[1755792965148,0.1176,4263.4,4263.1,0.61086]
[1755792965658,0.1176,4263.4,4263.3,0.2871]
[1755792965859,0.1176,4263.4,4263.1,0.61086]
[1755792967028,0.4658,4264.5,4263.4,2.34552621]
[1755792967365,0.1176,4263.6,4263.5,4.164]
[1755792967568,0.1176,4263.6,4263.5,6.2551]
[1755792967862,0.1176,4263.6,4263.5,6.717791]
[1755792968734,0.1176,4263.6,4263.5,9.52578179]